Cogmind - Beta 10.2 @@@ ROGUE MODE // 2021.11.14 @ 17:33:34 Player: Phaethon Result: Destroyed by as-68876 with Assembled Blade Performance ------------- Evolutions (0) 0 Regions Visited (2) 400 Robots Destroyed (17) 85 Value Destroyed (282) 282 Prototype IDs (0) 0 Alien Tech Used (0) 0 Bonus (0) 0 TOTAL SCORE: 767 Bonus ------- None Cogmind --------- Core Integrity 0/250 Matter 229/300 Energy 24/100 System Corruption 8% Temperature Cool (111) Movement Core (650) Ox12 Location -10/Mines Parts ------- > --- POWER (1) -------- (None) > --- PROPULSION (2) --- (None) > --- UTILITY (2) ------ Large Storage Unit Large Storage Unit > --- WEAPON (2) ------- Particle Gun Autogun > --- INVENTORY (16) --- Light Ion Engine Heat Sink Medium Storage Unit Signal Interpreter Light Armor Plating Light Armor Plating EM Pulse Gun Particle Gun Mining Laser Mining Laser Hammer Peak State ------------ > --- POWER ------------ Light Ion Engine > --- PROPULSION ------- Aluminum Leg Aluminum Leg > --- UTILITY ---------- Heat Sink Small Storage Unit > --- WEAPON ----------- Particle Gun Particle Gun > --- INVENTORY -------- Light Ion Engine Light Treads Particle Gun Autogun Autogun EMP Blaster [Rating: 10] Favorites ----------- Power Light Ion Engine Engine Light Ion Engine Propulsion Aluminum Leg Leg Aluminum Leg Utility Medium Storage Unit Device Heat Sink Storage Medium Storage Unit Weapon Particle Gun Energy Gun Particle Gun Ballistic Gun Autogun Launcher EMP Blaster Build | -11 -10 -10 ------- Run | Scr Mat Min Slots Evolved . | . . . Power . | . . . Propulsion . | . . . Utility . | . . . Weapon . | . . . Parts Attached 24 | 6 14 4 Power 5 | 1 3 1 Engine 5 | 1 3 1 Core . | . . . Reactor . | . . . Propulsion 4 | 2 1 1 Treads . | . . . Leg 4 | 2 1 1 Wheel . | . . . Hover . | . . . Flight . | . . . Utility 6 | 1 5 . Device 1 | . 1 . Storage 5 | 1 4 . Processor . | . . . Hackware . | . . . Protection . | . . . Artifact . | . . . Weapon 9 | 2 5 2 Energy Gun 6 | 2 3 1 Energy Cannon . | . . . Ballistic Gun 2 | . 1 1 Ballistic Cannon . | . . . Launcher 1 | . 1 . Special Weapon . | . . . Impact Weapon . | . . . Slashing Weapon . | . . . Piercing Weapon . | . . . Special Melee Weapon . | . . . Unidentified Prototypes . | . . . Parts Lost 10 | . 3 7 Power 3 | . 1 2 Propulsion 4 | . 1 3 Utility . | . . . Weapon 3 | . 1 2 Highest Loss Streak 7 | . 1 7 Average Slot Usage (%) 96 | . 97 78 Engine 13 | . 13 7 Leg 27 | . 27 28 Device 2 | . 2 . Storage 23 | . 23 28 Energy Gun 22 | . 22 . Ballistic Gun 4 | . 4 7 Naked Turns . | . . . Heaviest Build 42 | 12 42 42 Greatest Support 20 | 20 20 20 Greatest Overweight (x) 2 | 1 2 2 Average Overweight (x) . | . . 2 Largest Inventory Capacity 16 | 6 16 16 Average Capacity 10 | 5 10 16 Most Carried 16 | 6 16 15 Average Carried 8 | 2 9 13 Final Capacity 16 | 6 16 16 Final Carried 15 | 6 15 11 Class Distribution -------------------- 100% | Mutant Dominant Class ---------------- Mutant | -10/Materials Mutant | -10/Mines Resources | -11 -10 -10 ----------- Run | Scr Mat Min Matter Collected 419 | 186 233 . Remotely . | . . . Salvage Created 496 | . 481 15 Parts 36 | . 36 . Haulers Intercepted 1 | . 1 . Recyclers Shooed . | . . . Parts Field Recycled . | . . . Retrieved Matter . | . . . Parts Self-Destructed . | . . . Prevented . | . . . Kills | -11 -10 -10 ------- Run | Scr Mat Min Combat Hostiles Destroyed 11 | . 10 1 Guns 10 | . 9 1 AOE 1 | . 1 . Classes Destroyed 8 | . 7 1 Worker 1 | . 1 . Hauler 1 | . 1 . Recycler 2 | . 2 . Operator 1 | . 1 . Watcher 2 | . 2 . Swarmer 6 | . 6 . Grunt 4 | . 4 . Assembled 1 | . . 1 Best Kill Streak 5 | . 5 1 Combat Bots Only 3 | . 3 1 Max Kills in Single Turn 2 | . 2 1 Gunslinging 1 | . 1 . Exploded 1 | . 1 . Melee . | . . . Uniques/NPCs Destroyed . | . . . Combat | -11 -10 -10 -------- Run | Scr Mat Min Damage Taken 1191 | . 442 749 Core 263 | . 74 189 Absorbed by Shields . | . . . Core Remaining (%) 100 | 100 . . Volleys Fired 47 | . 41 6 Largest 2 | . 2 2 Hottest 130 | . 130 88 Shots Fired 75 | . 65 10 Gun 72 | . 65 7 Cannon . | . . . Launcher 3 | . . 3 Special . | . . . Kinetic 22 | . 16 6 Thermal 41 | . 40 1 Explosive . | . . . Electromagnetic 12 | . 9 3 Robot Hit Streak 8 | . 8 1 Robot Miss Streak 3 | . 2 3 Penetration Max . | . . . Secondary Targets 1 | . 1 . Max Gunslinging Chain 1 | . 1 . Shots Hit Robots 48 | . 45 3 Core Hits 23 | . 18 5 Critical Hits . | . . . Critical Kills . | . . . Critical Parts Destroyed . | . . . Melee Attacks . | . . . Impact . | . . . Slashing . | . . . Piercing . | . . . Sneak Attacks . | . . . Combat Hostiles . | . . . Follow-up Attacks . | . . . Damage Inflicted 889 | . 715 174 Guns 750 | . 672 78 Cannons . | . . . Explosions 139 | . 43 96 Melee . | . . . Ramming . | . . . Kinetic 301 | . 223 78 Thermal 413 | . 413 . Explosive . | . . . Electromagnetic 175 | . 79 96 Impact . | . . . Slashing . | . . . Piercing . | . . . Highest Corruption 8 | . 2 8 Average Corruption 2 | . 2 3 Corruption Purged . | . . . Effects 3 | . 3 . Message Errors 1 | . 1 . Heat Flow Errors 2 | . 2 . Overload Shots . | . . . Overflow Damage . | . . . Projectiles . | . . . Explosions . | . . . Melee . | . . . Knockbacks . | . . . Impact . | . . . Kinetic . | . . . Secondary . | . . . Self-Inflicted Damage 38 | . 34 4 Shots 2 | . 1 1 Rammed . | . . . Targets Rammed . | . . . Kicked . | . . . Crushed . | . . . Highest Temperature 401 | . 401 111 Average Temperature 87 | . 92 41 Received Heat Transfer 323 | . 123 200 Siege Activations . | . . . Robots Corrupted . | . . . Combat Hostiles . | . . . Parts Fried . | . . . Impact Corruptions . | . . . Robots Melted . | . . . Combat Hostiles . | . . . Parts Melted . | . . . Heat Transferred 840 | . 840 . Parts Sabotaged . | . . . Parts Stolen . | . . . Parts Stripped . | . . . Power Chain Reactions 1 | . 1 . Missiles Intercepted . | . . . Alert | -11 -10 -10 ------- Run | Scr Mat Min Peak Influence 253 | . 253 22 Initial 22 | . . 22 Average 119 | . 131 12 Maximum Alert Level 1 | . 1 . Low Security (%) 79 | 100 77 100 Level 1 20 | . 22 . Level 2 . | . . . Level 3 . | . . . Level 4 . | . . . Level 5 . | . . . High Security . | . . . Max Security . | . . . Squads Dispatched 1 | . 1 . Investigation . | . . . Extermination . | . . . Reinforcement 1 | . 1 . Assault . | . . . Garrison . | . . . Intercept . | . . . Construction Impeded . | . . . Haulers Reinforced . | . . . Stealth | -11 -10 -10 --------- Run | Scr Mat Min Distress Signals 1 | . 1 . Communications Jammed . | . . . Distress Signals . | . . . Times Spotted 30 | . 17 13 Peak Tracking Total 18 | . 3 18 Tactical Retreats 1 | . 1 . Traps | -11 -10 -10 ------- Run | Scr Mat Min Traps Triggered 1 | . 1 . Indirectly . | . . . Trap Hack Attempts . | . . . Triggered . | . . . Disarmed . | . . . Reprogrammed . | . . . Reused . | . . . Traps Extracted . | . . . Installed . | . . . Triggered . | . . . Machines | -11 -10 -10 ---------- Run | Scr Mat Min Machines Disabled 1 | . 1 . Max in Single Turn 1 | . 1 . Machines Sabotaged . | . . . Garrisons Compromised . | . . . Overloaded Fab Kills . | . . . Fab Network Shutdowns . | . . . Hacking | -11 -10 -10 --------- Run | Scr Mat Min Machines Accessed 7 | . 7 . Terminals 6 | . 6 . Fabricators . | . . . Repair Stations . | . . . Recycling Units 1 | . 1 . Scanalyzers . | . . . Garrison Access . | . . . Total Hacks 17 | . 17 . Successful 10 | . 10 . Failed 6 | . 6 . Catastrophic . | . . . Database Lockouts 1 | . 1 . Manual 12 | . 12 . Terminals 16 | . 16 . Fabricators . | . . . Repair Stations . | . . . Recycling Units 1 | . 1 . Scanalyzers . | . . . Garrison Access . | . . . Terminal Hacks 4 | . 4 . Robot Analysis 1 | . 1 . Branch Access Points 1 | . 1 . Locate Traps 2 | . 2 . Fabricator Hacks . | . . . Repair Station Hacks . | . . . Recycling Unit Hacks . | . . . Scanalyzer . | . . . Garrison Access Hacks . | . . . Unauthorized Hacks 6 | . 6 . Terminals 6 | . 6 . Assimilate 2 | . 2 . Botnet 3 | . 3 . Operators 1 | . 1 . Fabricators . | . . . Repair Stations . | . . . Recycling Units . | . . . Scanalyzers . | . . . Garrison Access . | . . . Data Cores Recovered 1 | . 1 . Used 1 | . 1 . Hacking Detections 7 | . 7 . Full Trace Events . | . . . Feedback Events . | . . . Feedback Blocked . | . . . Robot Schematics Acquired . | . . . Robots Built . | . . . Matter . | . . . Time . | . . . Total Robot Build Rating . | . . . Part Schematics Acquired . | . . . Parts Built . | . . . Matter . | . . . Time . | . . . Total Part Build Rating . | . . . Parts Repaired . | . . . Time . | . . . Parts Recycled . | . . . Recycled Matter . | . . . Retrieved Matter . | . . . Retrieved Components . | . . . Parts Scanalyzed . | . . . Part Schematics Acquired . | . . . Parts Damaged . | . . . Bothacking | -11 -10 -10 ------------ Run | Scr Mat Min Used RIF Installer . | . . . Robots Hacked . | . . . Non-combat . | . . . Combat . | . . . Robot Hacks Applied . | . . . Relay Couplers Released . | . . . Robots Rewired . | . . . Allies Hacked . | . . . Hacks Repelled . | . . . Allies | -11 -10 -10 -------- Run | Scr Mat Min Total Allies . | . . . Largest Group . | . . . Highest-Rated Group . | . . . Highest-Rated Ally . | . . . Total Orders . | . . . Ally Attacks . | . . . Total Damage . | . . . Kills . | . . . Allies Corrupted . | . . . Allies Melted . | . . . Intel | -11 -10 -10 ------- Run | Scr Mat Min Robot Analysis Total 1 | . 1 . Derelict Logs Recovered . | . . . Drone Launches . | . . . Drone Recoveries . | . . . Exploration | -11 -10 -10 ------------- Run | Scr Mat Min Turns Passed 953 | 64 865 24 Spaces Moved 514 | 41 470 3 Core 4 | 4 . . Treads . | . . . Legs 510 | 37 470 3 Wheels . | . . . Hover . | . . . Flight . | . . . Fastest Speed 50 | 50 120 180 Average Speed 139 | 120 140 180 Slowest Speed 180 | 150 180 180 Overloaded Moves . | . . . Propulsion Burnouts . | . . . Robots Hopped . | . . . Cave-ins Triggered . | . . . Exploration Rate (%) 31 | 3 86 6 Regions Visited 2 Branch Regions 1 Pre-discovered Areas . | . . . Known Exits Taken 1 | . 1 . Unknown Exits Taken 1 | 1 . . Scrap Searched . | . . . Spaces Dug . | . . . Terrain Destroyed 2 | . 2 . Melee . | . . . Projectile . | . . . AOE 2 | . 2 . Terrain Rammed . | . . . Walls Destroyed . | . . . Machines Disabled . | . . . Actions | -11 -10 -10 --------- Run | Scr Mat Min Total 683 | 52 618 13 Wait 62 | . 62 . Move 512 | 40 469 3 Hop . | . . . Pick Up 22 | 6 16 . Fast Attach 11 | 6 5 . Attach 6 | . 2 4 Detach 2 | . 2 . Swap 7 | . 7 . Drop 14 | . 14 . Fire 47 | . 41 6 Melee . | . . . Ram . | . . . Kick . | . . . Crush . | . . . Escape Stasis . | . . . Rewire . | . . . Trap . | . . . Miscellaneous . | . . . Route ------- -11/Scrapyard -10/Materials (discovered 4 exits: [*Mat x2] / *Min x2) -10/Mines History --------- Turn | Location | Event 25 | -11/Scrapyard | Discovered new exit (range 15) 65 | -11/Scrapyard | Entered Materials 219 | -10/Materials | Discovered new exit (range 4) 312 | -10/Materials | Central database locked down 318 | -10/Materials | Build established: Mutant 330 | -10/Materials | Identified exit to Mines 400 | -10/Materials | Discovered new exit (range 4) 930 | -10/Materials | Entered Mines 931 | -10/Mines | Assembled infested the area 937 | -10/Mines | Received a Rocket Launcher from a helpful Derelict 947 | -10/Mines | Core integrity fell below 50% 953 | -10/Mines | Core integrity fell below 20% 954 | -10/Mines | Destroyed by as-68876 with Assembled Blade Last Messages --------------- 00934_ 6J-F67(g): "Everyone knows a good old rocket launcher goes a long way." 00935_ 6J-F67(g): "Need to get rid of a swarm? Done. Need a big hole in the wall? Done." 00936_ 6J-F67(g): "Need a small hole in the wall? Leave that to the mining laser wimps, I say!" 00937_ 6J-F67(g): "Would you like a rocket launcher? I know I would if I were you, so I'm going to lend you mine." 00937_ 6J-F67(g) slips back into the shadows. 00942_ Lgt. Ion Engine destroyed. 00942_ Knocked back. 00944_ Aluminum Leg destroyed. 00949_ EMP Blaster destroyed. 00949_ Lgt. Ion Engine destroyed. 00949_ Autogun destroyed. 00949_ System corrupted by crushing effect (+1). 00949_ System corrupted by crushing effect (+5). 00950_ Aluminum Leg destroyed. 00952_ as-34469 destroyed. 00952_ Aluminum Leg destroyed. Map ----- +----------------------------------------------------+ | | | | | | | | | | | | | ??????????????????????????????????????????? | | ??????????????????????????????????????????? | | ??????????????????????????????????????????? | | ??????????????????????????????????????????? | | ??????????????????????????????????????????? | | ??????????????????????????????????????????? | | ??????????????????????????????????????????? | | ??????????????????????????????????????????? | | ??????????????????????###?????????????????? | | ??????????????????????? #????????????????? | | ??????????????????????? #???????????????? | | ??????????????????????? ##?????????????? | | ???????????????????????? ##????????????? | | ???????????????????????? #????????????? | | ???????????????????????? ##???????????? | | ????????????????????????? #???????????? | | ????????????????????????? #???????????? | | ?????????????????????????# #???????????? | | ????????????????????????##a #????????????? | | ???????????????????????##@a ######????????? | | ??????????????????????##aaa a #????????? | | ??????????????????????# % a a #????????? | | ??????????????????????# a #### #????????? | | ?????????????????????# aa #?????#????????? | | ????????????????????# #??????????????? | | ????????????????????# ##??????????????? | | ??????????????????? ##???????????????? | | ????????????????? a?????????????????? | | ???????????????? ?????????????????? | | ??????????????? ] ?????????????????? | | ?????????????? ####?????????????????? | | ???????????????# #?????????????????????? | | ???????????????#####??????????????????????? | | ??????????????????????????????????????????? | | ??????????????????????????????????????????? | | ??????????????????????????????????????????? | | ??????????????????????????????????????????? | | ??????????????????????????????????????????? | | ??????????????????????????????????????????? | | ??????????????????????????????????????????? | | ??????????????????????????????????????????? | | ??????????????????????????????????????????? | | ??????????????????????????????????????????? | | ??????????????????????????????????????????? | +----------------------------------------------------+ Best States ------------- Heat Dissipation 35 Energy Generation 10 Energy Capacity 250 Matter Stores 300 Matter Capacity 300 Sight Range 16 Terrain Scan Density 10 Evasion (%) 40 Item Schematics ----------------- None Robot Schematics ------------------ None Fabricated ------------ Nothing Alien Tech Used ----------------- None Achievements -------------- None Challenges ------------ None Game ------ Seed AntigravCoreRedirector Manual? 0 Play Time 00:14:11 Cumulative 107.4 hours Start 2021.11.14 @ 17:19:56 End 2021.11.14 @ 17:33:34 Sessions 1 Manual Loads 0 Difficulty Rogue Special Mode None Game No. 24 Rogue 24 Adventurer 0 Explorer 0 Win Type - Total 5 Types 4/1/0/0/0/0/0/0/0 Lore% 66 Gallery% 61 Achievement% 55 Wizard Run 0 Options --------- ASCII 0 Keyboard 0 Movement Vi Keybinds 0 Fullscreen 1 Font 36/Smallcaps Map View 76x50 Tactical HUD 1 Map Filters NONE Filters NONE Steam 1 RUN: 9ce30e0a-1268-44d8-a3fc-a85895fa261d